bitfinex/quotes_BTCUSD_20220218
["timestamp","ask_amount","ask_price","bid_price","bid_amount"]
[1645157888942,1.12186092,40680.0,40675.0,0.00024753]
[1645157889744,0.8375,40680.0,40675.0,0.00024753]
[1645157889948,0.23861765,40677.0,40672.0,0.32433649]
[1645157890244,0.05,40676.0,40675.0,0.00024753]
[1645157891048,0.05,40676.0,40672.0,0.32433649]
[1645157891248,0.05,40676.0,40673.0,0.00024754]
[1645157892293,0.05,40676.0,40672.0,0.32433649]
[1645157892496,0.05,40676.0,40672.0,0.32458403]
[1645157893097,0.3,40675.0,40672.0,0.32458403]
[1645157893296,0.05,40676.0,40672.0,0.32458403]
[1645157893497,0.05,40675.0,40672.0,0.32433649]
[1645157893800,0.061509,40675.0,40672.0,0.32433649]
[1645157894099,0.30928713,40675.0,40672.0,0.32433649]
[1645157894399,0.061508,40674.0,40672.0,0.32433649]
[1645157894697,0.05,40674.0,40672.0,0.32433649]
[1645157896653,0.29,40674.0,40672.0,0.32433649]
[1645157899800,0.24,40674.0,40672.0,0.32433649]
[1645157900601,0.24,40674.0,40672.0,0.38582649]
[1645157900800,0.24,40674.0,40672.0,0.68258846]
[1645157901200,0.24,40674.0,40672.0,0.32433649]
[1645157905546,0.235,40674.0,40673.0,0.0012011]
[1645157910341,0.235,40674.0,40672.0,0.32433649]
[1645157910342,0.235,40674.0,40672.0,0.32553759]
[1645157911946,0.296502,40674.0,40672.0,0.32553759]
[1645157913549,0.291502,40674.0,40672.0,0.32553759]
[1645157915396,0.235,40674.0,40672.0,0.32553759]
[1645157918348,0.235,40674.0,40672.0,0.52270621]
[1645157918544,0.235,40674.0,40672.0,0.58418921]
[1645157918744,0.00984,40677.0,40674.0,0.32412029]
[1645157919345,0.00984,40677.0,40674.0,0.37312029]
[1645157919750,0.00984,40677.0,40675.0,0.061484]
[1645157923599,0.00984,40677.0,40674.0,0.37312029]
[1645157923799,0.00984,40677.0,40674.0,0.37336719]
[1645157924801,0.00984,40677.0,40674.0,0.43460629]
[1645157925542,0.00984,40677.0,40676.0,0.00119746]
[1645157930402,0.00984,40677.0,40674.0,0.32576423]
[1645157930602,0.24984,40677.0,40674.0,0.38725023]
[1645157930802,0.24984,40677.0,40674.0,0.38700333]
[1645157931405,0.24984,40677.0,40674.0,0.32551733]
[1645157934358,0.1977563,40676.0,40674.0,0.32551733]
[1645157935558,0.1977563,40676.0,40674.0,0.32412029]
[1645157937793,0.24,40677.0,40674.0,0.32412029]
[1645157939695,0.24,40677.0,40674.0,0.32404928]
[1645157940353,0.24,40677.0,40675.0,0.00119867]
[1645157940758,0.24,40677.0,40676.0,0.382438]
[1645157940951,0.24,40677.0,40676.0,0.431438]
[1645157941151,0.235,40677.0,40676.0,0.431438]
[1645157941552,0.235,40677.0,40676.0,0.62348623]
[1645157943053,0.235,40677.0,40676.0,0.92348623]
[1645157943655,0.235,40677.0,40676.0,0.87348623]
[1645157943857,0.235,40677.0,40676.0,0.24104823]
[1645157944099,0.235,40677.0,40676.0,0.57348623]
[1645157944299,0.235,40677.0,40676.0,0.62348623]
[1645157944498,0.235,40677.0,40676.0,0.92348623]
[1645157945603,0.235,40677.0,40676.0,0.92488327]
[1645157948850,0.4134863,40680.0,40677.0,1.193909]
[1645157949052,0.4134863,40680.0,40679.0,0.682438]
[1645157949855,0.4134863,40680.0,40679.0,1.01682056]
[1645157950052,0.4134863,40680.0,40679.0,1.07828756]
[1645157950253,0.4134863,40680.0,40679.0,1.44227504]
[1645157950453,0.4134863,40680.0,40679.0,0.84584956]
[1645157950752,0.4134863,40680.0,40679.0,1.17828756]
[1645157950956,0.4134863,40680.0,40679.0,0.84584956]
[1645157951155,0.4134863,40680.0,40679.0,1.17828756]
[1645157951597,0.4134863,40680.0,40679.0,0.84584956]
[1645157951795,0.4134863,40680.0,40679.0,1.17828756]
[1645157951996,0.4134863,40680.0,40679.0,1.72648756]
[1645157952696,0.4134863,40680.0,40679.0,1.39404956]
[1645157952896,0.4134863,40680.0,40679.0,1.17828756]
[1645157953797,0.6534863,40680.0,40679.0,1.17828756]
[1645157954996,0.6534863,40680.0,40679.0,1.72638756]
[1645157955447,0.6534863,40680.0,40679.0,1.72778035]
[1645157956548,0.5938552,40680.0,40679.0,1.42778035]
[1645157956747,0.5938552,40680.0,40679.0,1.57778035]
[1645157957048,0.00024258,40685.0,40683.0,0.06144996]
[1645157957347,0.015,40698.0,40684.0,0.432438]
[1645157957348,0.00036476,40693.0,40684.0,0.432438]
[1645157957547,0.00036476,40691.0,40685.0,0.27063249]
[1645157957749,0.00036476,40697.0,40695.0,0.20894183]
[1645157957950,0.015,40698.0,40695.0,0.20894183]
[1645157958150,0.00036476,40697.0,40695.0,0.20894183]
[1645157958350,0.01536476,40698.0,40695.0,0.20894183]
[1645157958550,0.01536476,40698.0,40692.0,0.35221641]
[1645157958751,0.01536476,40698.0,40690.0,0.001]
[1645157959102,0.01536476,40698.0,40692.0,0.061453]
[1645157959902,0.00024699,40697.0,40692.0,0.061453]
[1645157960104,0.00061175,40697.0,40692.0,0.061453]
[1645157960303,0.00024699,40697.0,40692.0,0.061453]
[1645157960501,0.00061175,40697.0,40692.0,0.061453]
[1645157960702,0.00024699,40697.0,40692.0,0.061453]
[1645157960902,0.00036476,40697.0,40692.0,0.061453]
[1645157961102,0.000247,40697.0,40692.0,0.061453]
[1645157961300,0.00061176,40697.0,40692.0,0.061453]
[1645157961501,0.000247,40697.0,40692.0,0.061453]
[1645157961706,0.00061176,40697.0,40693.0,0.061452]
[1645157961903,0.000247,40697.0,40693.0,0.061452]
[1645157962103,0.00036476,40697.0,40693.0,0.061452]
[1645157962303,0.00024699,40697.0,40693.0,0.061452]
[1645157962504,0.00061175,40697.0,40693.0,0.061452]
[1645157962704,0.00024699,40697.0,40693.0,0.361452]
[1645157962950,0.00024699,40697.0,40695.0,0.061448]
[1645157963151,0.00036476,40699.0,40695.0,0.061448]
[1645157963550,0.00024699,40698.0,40695.0,0.122897]
[1645157963751,0.34664805,40698.0,40695.0,0.122897]
[1645157964357,0.34640106,40698.0,40692.0,0.049]
[1645157964553,0.34640106,40698.0,40690.0,0.001]
[1645157964753,0.50786006,40698.0,40690.0,0.001]
[1645157964955,0.001,40697.0,40690.0,0.001]
[1645157965155,0.00136476,40697.0,40690.0,0.002]
[1645157965354,0.26754344,40695.0,40690.0,0.002]
[1645157965554,0.26754344,40695.0,40690.0,0.003]
[1645157965753,0.26754344,40695.0,40690.0,0.064458]
[1645157965954,0.26779044,40695.0,40690.0,0.064458]
[1645157966596,0.26779044,40695.0,40690.0,0.062458]
[1645157966799,0.26791091,40695.0,40690.0,0.062458]
[1645157967003,0.26754344,40695.0,40690.0,0.062458]
[1645157967197,0.26779044,40695.0,40690.0,0.062458]
[1645157967597,0.26815791,40695.0,40690.0,0.062458]
[1645157967798,0.000247,40695.0,40690.0,0.123913]
[1645157967999,0.00036747,40697.0,40691.0,0.061454]
[1645157968199,0.58640106,40698.0,40691.0,0.061454]
[1645157968200,0.00036747,40695.0,40691.0,0.061454]
[1645157968399,0.000247,40695.0,40691.0,0.061454]
[1645157969200,0.00036747,40697.0,40691.0,0.061454]
[1645157969402,0.00024331,40695.0,40691.0,0.122908]
[1645157969604,0.00024331,40695.0,40692.0,0.061455]
[1645157970449,0.00036747,40697.0,40692.0,0.061455]
[1645157970648,0.00024331,40696.0,40692.0,0.061455]
[1645157971547,0.00024331,40696.0,40692.0,0.062455]
[1645157971745,0.00036747,40697.0,40692.0,0.062455]
[1645157971946,0.00024331,40696.0,40692.0,0.062455]
[1645157972344,0.00024331,40696.0,40692.0,0.061455]
[1645157972745,0.00036747,40697.0,40692.0,0.061455]
[1645157972946,0.8743772,40698.0,40692.0,0.061455]
[1645157973146,0.000247,40696.0,40692.0,0.061455]
[1645157973648,0.000247,40696.0,40692.0,0.062455]
[1645157974101,0.00036747,40697.0,40692.0,0.062455]
[1645157974302,0.000247,40696.0,40692.0,0.062455]
[1645157975202,0.00036747,40697.0,40692.0,0.062455]
[1645157975407,0.000247,40696.0,40692.0,0.061455]
[1645157975604,0.000247,40696.0,40692.0,0.062455]
[1645157976506,0.00036747,40697.0,40692.0,0.062455]
[1645157976707,0.82400973,40698.0,40692.0,0.12390701]
[1645157976708,0.000247,40696.0,40692.0,0.12390701]
[1645157976907,0.000247,40696.0,40692.0,0.06245201]
[1645157977108,0.000247,40696.0,40693.0,0.061452]
[1645157977607,0.00036747,40697.0,40693.0,0.061452]
[1645157977855,0.000247,40697.0,40693.0,0.061452]
[1645157978056,0.00061447,40697.0,40693.0,0.061452]
[1645157978256,0.000247,40697.0,40693.0,0.061452]
[1645157978463,0.00061447,40697.0,40693.0,0.061452]
[1645157978855,0.00036747,40697.0,40693.0,0.061452]
[1645157979056,0.00024699,40697.0,40693.0,0.061452]
[1645157979258,0.00061446,40697.0,40693.0,0.061452]
[1645157979455,0.00024699,40697.0,40693.0,0.061452]
[1645157979657,0.00024699,40697.0,40693.0,0.062452]
[1645157979859,0.00061446,40697.0,40693.0,0.062452]
[1645157980065,0.58676853,40698.0,40693.0,0.12390276]
[1645157980259,0.00061446,40697.0,40693.0,0.12390276]
[1645157980460,0.00024699,40697.0,40693.0,0.12390276]
[1645157980860,0.00061446,40697.0,40694.0,0.061452]
[1645157981060,0.00024699,40697.0,40694.0,0.061452]
[1645157981260,0.00036747,40697.0,40693.0,0.001]
[1645157981460,0.58664805,40698.0,40691.0,0.06145362]
[1645157981693,0.58701552,40698.0,40694.0,0.001]
[1645157981893,0.58664805,40698.0,40694.0,0.001]
[1645157982496,0.58640106,40698.0,40694.0,0.001]
[1645157982698,0.58664805,40698.0,40694.0,0.001]
[1645157983494,0.58664805,40698.0,40690.0,0.1956184]
[1645157983695,0.58640106,40698.0,40694.0,0.001]
[1645157983896,0.64810405,40698.0,40694.0,0.001]
[1645157984296,0.58664805,40698.0,40694.0,0.0009162]
[1645157984795,0.58640106,40698.0,40694.0,0.0009162]
[1645157985199,0.58664805,40698.0,40694.0,0.0009162]
[1645157985444,0.58664805,40698.0,40690.0,0.001]
[1645157985645,0.58764805,40698.0,40690.0,0.001]
[1645157986045,0.58740106,40698.0,40691.0,0.049]
[1645157986244,0.000247,40696.0,40691.0,0.049]
[1645157986445,0.000247,40696.0,40691.0,0.11045388]
[1645157986746,0.000247,40696.0,40692.0,0.061454]
[1645157986946,0.55528274,40698.0,40692.0,0.061454]
[1645157987147,0.55428274,40698.0,40692.0,0.061454]
[1645157987750,0.55528274,40698.0,40692.0,0.061454]
[1645157991102,0.55452973,40698.0,40692.0,0.061454]
[1645157991506,0.55452973,40698.0,40693.0,0.061453]
[1645157991703,0.55552973,40698.0,40691.0,0.049]
[1645157992203,0.55528274,40698.0,40691.0,0.049]
[1645157992404,0.55552973,40698.0,40691.0,0.049]
[1645157992854,0.55552973,40698.0,40691.0,0.17190976]
[1645157993053,0.55452973,40698.0,40691.0,0.110456]
[1645157993249,0.55428274,40698.0,40691.0,0.110456]
[1645157993450,0.55452973,40698.0,40691.0,0.110456]
[1645157993650,0.55552973,40698.0,40691.0,0.110456]
[1645157993849,0.55552973,40698.0,40692.0,0.3]
[1645157994049,0.55552973,40698.0,40693.0,0.06144869]
[1645157994250,0.55552973,40698.0,40692.0,0.3]
[1645157994449,0.55528274,40698.0,40692.0,0.3]
[1645157994849,0.55551369,40698.0,40692.0,0.3]
[1645157995253,0.55551369,40698.0,40694.0,0.25257182]
[1645157995658,0.55428274,40698.0,40694.0,0.25257182]
[1645157995851,0.24023096,40698.0,40694.0,0.25257182]
[1645157996052,0.24023096,40698.0,40694.0,0.31402382]
[1645157996696,0.24023096,40698.0,40694.0,0.31402029]
[1645157996899,0.24,40698.0,40694.0,0.25257182]
[1645157997099,0.24023096,40698.0,40694.0,0.31402382]
[1645157998096,0.24,40698.0,40694.0,0.31402382]
[1645157998300,0.24023096,40698.0,40694.0,0.31402382]
[1645157998497,0.24023096,40698.0,40694.0,0.31402087]
[1645157998697,0.24023096,40698.0,40695.0,0.06145]
[1645157999298,0.24,40698.0,40695.0,0.36145]
[1645157999501,0.24,40698.0,40696.0,0.381438]
[1645157999700,0.00023204,40699.0,40698.0,0.65120169]
[1645157999900,0.00023204,40699.0,40698.0,1.00020169]
[1645158000361,1.99523204,40700.0,40699.0,0.332438]
[1645158000557,1.99523204,40700.0,40699.0,0.681438]
[1645158000757,1.99523204,40700.0,40699.0,0.742868]
[1645158002855,1.99523204,40700.0,40699.0,0.442868]
[1645158003955,1.99523204,40700.0,40699.0,0.991768]
[1645158005197,1.99523204,40700.0,40699.0,0.990768]
[1645158005796,1.99523204,40700.0,40699.0,0.991768]
[1645158008849,2.23523204,40700.0,40699.0,0.991768]
[1645158009349,2.23523204,40700.0,40699.0,0.990768]
[1645158011252,2.23523204,40700.0,40699.0,1.290768]
[1645158011696,2.23523204,40700.0,40699.0,1.386458]
[1645158011896,2.23523204,40700.0,40699.0,3.54804646]
[1645158013598,2.23523204,40700.0,40699.0,3.54704646]
[1645158013802,2.23523204,40700.0,40699.0,3.54904646]
[1645158013999,2.23523204,40700.0,40699.0,1.387458]
[1645158014500,2.23523204,40700.0,40699.0,1.292768]
[1645158015199,2.23523204,40700.0,40699.0,1.290768]
[1645158016350,2.23523204,40700.0,40699.0,0.990768]
[1645158016548,2.23523204,40700.0,40699.0,1.290768]
[1645158016949,2.23523204,40700.0,40699.0,0.990768]
[1645158017850,2.23523204,40700.0,40699.0,0.992768]
[1645158018049,2.23523204,40700.0,40699.0,1.092768]
[1645158019602,2.23523204,40700.0,40699.0,1.090768]
[1645158019801,2.23523204,40700.0,40699.0,1.092768]
[1645158021405,2.23523204,40700.0,40699.0,1.36445282]
[1645158021603,2.19944486,40700.0,40699.0,1.090768]
[1645158022401,2.19944486,40700.0,40699.0,1.390768]
[1645158023046,2.19944486,40700.0,40699.0,1.090768]
[1645158023445,2.19944486,40700.0,40699.0,1.330768]
[1645158024051,2.19944486,40700.0,40699.0,0.84933]
[1645158024248,2.19944486,40700.0,40699.0,0.7879]
[1645158025048,2.19944486,40700.0,40699.0,0.24]
[1645158025446,2.40766345,40700.0,40699.0,0.24]
[1645158027500,2.40766345,40700.0,40699.0,0.332438]
[1645158028100,2.19944486,40700.0,40699.0,0.332438]
[1645158029603,1.64075783,40700.0,40699.0,0.332438]
[1645158029802,1.63075783,40700.0,40699.0,0.332438]
[1645158030451,1.63146287,40700.0,40699.0,0.332438]
[1645158032158,1.63146287,40700.0,40699.0,0.632438]
[1645158033554,1.63146287,40700.0,40699.0,0.332438]
[1645158033954,1.63146287,40700.0,40699.0,0.880238]
[1645158035902,1.62646287,40700.0,40699.0,0.332438]
[1645158036301,1.62646287,40700.0,40699.0,0.572438]
[1645158037103,1.62646287,40700.0,40699.0,0.24]
[1645158037303,1.61337036,40700.0,40699.0,0.572438]
[1645158040556,1.61337036,40700.0,40699.0,0.57431931]
[1645158045550,1.61337036,40700.0,40699.0,0.57338684]
[1645158059813,1.05472557,40700.0,40699.0,0.57338684]
[1645158060654,1.05472557,40700.0,40699.0,0.78284336]
[1645158062255,1.05472557,40700.0,40699.0,0.57338684]
[1645158062655,1.05472557,40700.0,40699.0,0.78284336]
[1645158062856,1.05472557,40700.0,40699.0,0.57338684]
[1645158063656,1.05472557,40700.0,40699.0,0.78274605]
[1645158065708,1.05472557,40700.0,40699.0,0.57338684]
[1645158073611,1.05472557,40700.0,40699.0,0.69625784]
[1645158074207,1.05402781,40700.0,40699.0,0.69625784]
[1645158081308,1.05102781,40700.0,40699.0,0.69625784]
[1645158089715,0.49236494,40700.0,40699.0,0.69625784]
[1645158092752,0.49236494,40700.0,40699.0,0.36381984]
[1645158092953,0.49236494,40700.0,40699.0,0.69625784]
[1645158093955,0.49236494,40700.0,40699.0,0.36381984]
[1645158094904,0.49236494,40700.0,40699.0,0.69625784]
[1645158097705,0.49236494,40700.0,40699.0,0.57317905]
[1645158098160,0.49236494,40700.0,40699.0,0.90561705]
[1645158098361,0.49236494,40700.0,40699.0,0.57317905]
[1645158098560,0.49236494,40700.0,40699.0,0.90561705]
[1645158100660,0.49236494,40700.0,40699.0,0.85923505]
[1645158101260,0.49236494,40700.0,40699.0,0.8592287]
[1645158102218,0.49236494,40700.0,40699.0,0.64987584]
[1645158104209,0.49236494,40700.0,40699.0,0.94987584]
[1645158104410,0.49236494,40700.0,40699.0,1.21169649]
[1645158105654,0.49236494,40700.0,40699.0,0.87925849]
[1645158105857,0.49236494,40700.0,40699.0,1.21169649]
[1645158106356,0.48236494,40700.0,40699.0,1.21169649]
[1645158107757,0.00023277,40702.0,40701.0,0.332438]
[1645158107956,0.00023277,40702.0,40701.0,0.693869]
[1645158108158,0.00023277,40702.0,40701.0,0.788539]
[1645158108360,0.00093091,40709.0,40703.0,0.332438]
[1645158108361,0.00036563,40706.0,40703.0,0.332438]
[1645158108558,0.193,40711.0,40702.0,0.95046554]
[1645158108559,0.00036563,40705.0,40704.0,0.89401215]
[1645158108862,0.00036563,40707.0,40705.0,0.332438]
[1645158109109,0.00036563,40710.0,40707.0,0.332438]
[1645158109408,0.193,40711.0,40709.0,0.332438]
[1645158109612,0.00036563,40714.0,40709.0,0.332438]
[1645158109809,0.00036563,40714.0,40708.0,0.23503134]
[1645158110016,0.12426563,40716.0,40712.0,0.061421]
[1645158110210,0.00010158,40714.0,40712.0,0.061421]
[1645158110410,0.24010158,40714.0,40712.0,0.061421]
[1645158111210,0.24,40714.0,40711.0,0.1228449]
[1645158111711,0.24036563,40714.0,40711.0,0.0614209]
[1645158111909,0.24136563,40714.0,40711.0,0.0614209]
[1645158112309,0.24136563,40714.0,40711.0,0.1228399]
[1645158112510,0.241,40714.0,40712.0,0.061422]
[1645158112714,0.24136563,40714.0,40712.0,0.061422]
[1645158113358,0.24136563,40714.0,40713.0,0.332438]
[1645158113557,0.241,40714.0,40712.0,0.110422]
[1645158113757,0.241,40714.0,40712.0,0.171842]
[1645158113758,0.24,40714.0,40712.0,0.171842]
[1645158113957,0.24036563,40714.0,40713.0,0.001]
[1645158114160,0.24,40714.0,40713.0,0.001]
[1645158114359,0.24,40714.0,40713.0,0.333438]
[1645158114559,0.24,40714.0,40713.0,0.001]
[1645158115363,0.00076501,40713.0,40712.0,0.23325697]
[1645158115558,0.00076501,40713.0,40712.0,0.56569497]
[1645158115961,0.00076501,40713.0,40712.0,0.53425697]
[1645158116159,0.00076501,40713.0,40712.0,0.56669497]
[1645158118304,0.00076501,40713.0,40712.0,0.53425697]
[1645158118704,0.00076501,40713.0,40712.0,0.86669497]
[1645158118904,0.00076501,40713.0,40712.0,0.23425697]
[1645158119505,0.00076501,40713.0,40712.0,0.56669497]
[1645158119705,0.00036563,40720.0,40718.0,0.31771697]
[1645158119905,0.01,40721.0,40718.0,0.31771697]
[1645158119906,0.01077183,40721.0,40718.0,0.31771697]
[1645158120206,0.00036563,40720.0,40718.0,0.31771697]
[1645158120460,0.0104062,40721.0,40718.0,0.31771697]
[1645158120656,0.01077183,40721.0,40718.0,0.31771697]
[1645158120858,0.01,40721.0,40718.0,0.31771697]
[1645158121357,0.24,40720.0,40718.0,0.31771697]
[1645158121560,0.24036563,40720.0,40719.0,0.332438]
[1645158121757,0.24,40720.0,40719.0,0.332438]
[1645158122356,0.24,40720.0,40719.0,0.58433884]
[1645158123557,0.24,40720.0,40719.0,0.88433884]
[1645158123958,0.24,40720.0,40719.0,0.88533884]
[1645158124616,0.14,40720.0,40719.0,0.88533884]
[1645158125418,0.14,40720.0,40719.0,0.93649574]
[1645158125722,0.13,40720.0,40719.0,0.93649574]
[1645158125919,0.13,40720.0,40719.0,0.93849574]
[1645158126319,0.13,40720.0,40719.0,0.93749574]
[1645158127121,0.13,40720.0,40719.0,3.55011988]
[1645158127322,0.13,40720.0,40719.0,3.54811988]
[1645158127960,0.13,40720.0,40719.0,1.48699574]
[1645158129461,0.13,40720.0,40719.0,1.48299574]
[1645158129959,0.13,40720.0,40719.0,1.48699574]
[1645158130161,0.00036563,40721.0,40719.0,1.48699574]
[1645158130162,0.00036563,40721.0,40720.0,1.18492948]
[1645158130360,0.0002196,40722.0,40721.0,0.332438]
[1645158130561,0.00036563,40725.0,40721.0,0.781438]
[1645158130761,0.00021959,40723.0,40721.0,0.954211]
[1645158130964,0.00021959,40723.0,40722.0,0.89876508]
[1645158131160,0.00021959,40723.0,40722.0,0.94776508]
[1645158131359,0.00021959,40723.0,40722.0,1.04776508]
[1645158131811,0.00036563,40726.0,40723.0,0.332438]
[1645158132011,0.00021993,40725.0,40724.0,0.049]
[1645158132211,0.00021993,40725.0,40724.0,0.381438]
[1645158132413,0.00021993,40725.0,40724.0,0.781438]
[1645158132612,0.00021993,40725.0,40724.0,0.381438]
[1645158133014,0.00036563,40726.0,40725.0,0.332438]
[1645158133212,0.00131978,40727.0,40725.0,0.56563056]
[1645158133617,0.00131978,40727.0,40725.0,0.32563056]
[1645158134113,0.0011,40727.0,40725.0,0.32563056]
[1645158134514,0.00146563,40727.0,40725.0,0.32563056]
[1645158134914,0.00146563,40727.0,40726.0,0.26797146]
[1645158135114,0.0011,40727.0,40726.0,0.64940946]
[1645158137362,0.00087867,40735.0,40730.0,0.06139223]
[1645158137562,0.00087867,40735.0,40730.0,0.06139]
[1645158137762,0.0011,40738.0,40730.0,0.06139]
[1645158138465,0.81849766,40736.0,40730.0,0.06139]
[1645158139108,0.00010224,40735.0,40730.0,0.06139]
[1645158139708,0.00010224,40735.0,40731.0,0.06138816]
[1645158139908,0.00010224,40735.0,40731.0,0.12277816]
[1645158140110,0.0011,40736.0,40732.0,0.33225]
[1645158140310,0.0011,40736.0,40733.0,0.33225]
[1645158140311,0.00023406,40735.0,40733.0,0.33225]
[1645158140910,0.3,40740.0,40733.0,0.39363666]
[1645158141214,0.26246818,40740.0,40738.0,0.26585846]
[1645158142009,0.26446818,40740.0,40738.0,0.26585846]
[1645158142610,0.26446818,40740.0,40738.0,0.32724106]
[1645158142862,0.117198,40739.0,40738.0,0.32724106]
[1645158143058,0.26446818,40740.0,40738.0,0.32724106]
[1645158143257,0.117198,40739.0,40738.0,0.32724106]
[1645158143458,0.26446818,40740.0,40738.0,0.32724106]
[1645158143862,0.26246818,40740.0,40738.0,0.32724106]
[1645158144060,0.001,40739.0,40738.0,0.32724106]
[1645158144760,0.001,40739.0,40738.0,0.38862606]
[1645158145060,0.241,40739.0,40738.0,0.38862606]
[1645158145459,0.24,40739.0,40738.0,0.38862606]
[1645158148108,0.241,40739.0,40738.0,0.38862606]
[1645158149908,0.24,40739.0,40738.0,0.38862606]
[1645158150108,0.24,40739.0,40738.0,0.38962606]
[1645158150356,0.24,40739.0,40738.0,0.39150725]
[1645158150966,0.24,40739.0,40738.0,0.12564879]
[1645158151266,0.24,40739.0,40738.0,0.06426379]
[1645158151458,0.24,40739.0,40738.0,0.00188119]
[1645158152061,0.241,40739.0,40738.0,0.00188119]
[1645158152663,0.00042482,40740.0,40739.0,0.31719017]
[1645158152865,6.101e-05,40740.0,40739.0,0.31719017]
[1645158154119,0.00106101,40740.0,40739.0,0.31719017]
[1645158155516,6.101e-05,40740.0,40739.0,0.31719017]
[1645158156118,0.24006101,40740.0,40739.0,0.31819017]
[1645158157418,0.24006101,40740.0,40739.0,0.31719017]
[1645158158063,0.24006101,40740.0,40739.0,0.31819017]
[1645158159470,0.24006101,40740.0,40739.0,0.31719017]
[1645158160467,0.24006101,40740.0,40739.0,0.3182563]
[1645158162016,0.24006101,40740.0,40739.0,0.3192563]
[1645158163512,0.24006101,40740.0,40739.0,0.3182563]
[1645158164113,0.24006101,40740.0,40739.0,0.3192563]
[1645158165557,0.24006101,40740.0,40739.0,0.3182563]
[1645158168564,0.24006101,40740.0,40739.0,0.75756899]
[1645158172213,0.24006101,40740.0,40739.0,1.02341578]
[1645158172612,0.24006101,40740.0,40739.0,0.75856899]
[1645158174058,0.24006101,40740.0,40739.0,0.75756899]
[1645158176058,0.24006101,40740.0,40739.0,0.75856899]
[1645158177412,0.24006101,40740.0,40739.0,0.75756899]
[1645158177811,0.24006101,40740.0,40739.0,1.38981899]
[1645158178010,0.24006101,40740.0,40739.0,0.75756899]
[1645158178212,0.24006101,40740.0,40739.0,1.08981899]
[1645158178411,0.24006101,40740.0,40739.0,0.75756899]
[1645158178812,0.24006101,40740.0,40739.0,1.08981899]
[1645158179111,0.24006101,40740.0,40739.0,0.75756899]
[1645158180114,0.24006101,40740.0,40739.0,0.75956899]
[1645158181359,0.23506101,40740.0,40739.0,0.75956899]
[1645158181559,0.23506101,40740.0,40739.0,0.81895099]
[1645158182668,0.17413406,40744.0,40742.0,0.38166179]
[1645158183062,0.05833406,40744.0,40742.0,0.38166179]
[1645158184112,0.05833406,40744.0,40742.0,0.44304179]
[1645158184312,0.05833406,40744.0,40742.0,0.44404179]
[1645158184812,0.05833406,40744.0,40742.0,0.38266179]
[1645158185612,0.05833406,40744.0,40742.0,0.38285533]
[1645158186612,0.05833406,40744.0,40742.0,0.32147376]
[1645158188267,0.29833406,40744.0,40742.0,0.32147376]
[1645158188665,0.29833406,40744.0,40743.0,0.06138242]
[1645158188868,0.41553206,40744.0,40743.0,0.06138242]
[1645158189066,0.29820825,40744.0,40743.0,0.06138242]
[1645158190270,0.41540625,40744.0,40743.0,0.06238242]
[1645158190573,0.41540625,40744.0,40743.0,0.06359169]
[1645158192012,0.41540625,40744.0,40743.0,0.06259169]
[1645158192212,0.29820825,40744.0,40743.0,0.06359169]
[1645158192412,0.24967419,40744.0,40743.0,0.06359169]
[1645158193813,0.24967419,40744.0,40743.0,0.06259169]
[1645158194016,0.32967419,40744.0,40743.0,0.06259169]
[1645158196264,0.32967419,40744.0,40743.0,0.36359169]
[1645158196265,0.32,40744.0,40743.0,0.36359169]
[1645158196865,0.0022,40746.0,40743.0,0.36359169]
[1645158196866,0.0022,40746.0,40744.0,1.143621]
[1645158197066,0.00243252,40746.0,40745.0,0.33225]
[1645158197265,0.39764717,40747.0,40746.0,1.18225]
[1645158197465,0.39764717,40747.0,40746.0,1.49925775]
[1645158197466,0.10486968,40747.0,40746.0,1.49925775]
[1645158197666,0.001,40748.0,40747.0,1.18225]
[1645158197864,0.001,40748.0,40747.0,1.23125]
[1645158198067,0.001,40748.0,40747.0,1.23271594]
[1645158198470,0.001,40748.0,40747.0,1.44125922]
[1645158199126,0.001,40748.0,40747.0,1.23271594]
[1645158199925,0.241,40748.0,40747.0,1.23271594]
[1645158200327,0.241,40748.0,40747.0,1.23571594]
[1645158200528,0.241,40748.0,40747.0,1.23675169]
[1645158200926,0.24058194,40748.0,40747.0,1.78395169]
[1645158201131,0.00058194,40748.0,40747.0,1.78395169]
[1645158201529,0.00058194,40748.0,40747.0,1.78095169]
[1645158202129,0.00058194,40748.0,40747.0,1.78395169]
[1645158202329,0.00058194,40748.0,40747.0,1.82326438]
[1645158202532,0.00058194,40748.0,40747.0,0.97326438]
[1645158203565,0.00058194,40748.0,40747.0,0.97026438]
[1645158203770,0.00058194,40748.0,40747.0,1.27026438]
[1645158203965,0.00058194,40748.0,40747.0,0.72306438]
[1645158204968,0.00058194,40748.0,40747.0,1.27026438]
[1645158205367,0.00058194,40748.0,40747.0,0.97026438]
[1645158205567,0.00058194,40748.0,40747.0,0.97028251]
[1645158209318,0.00058194,40748.0,40747.0,1.27028251]
[1645158210220,0.00058194,40748.0,40747.0,1.27328251]
[1645158211067,0.08058194,40748.0,40747.0,1.27328251]
[1645158211570,0.08058194,40748.0,40747.0,1.27028251]
[1645158211964,0.08058194,40748.0,40747.0,0.97028251]
[1645158212567,1.52431995,40750.0,40749.0,0.061357]
[1645158212765,1.52431995,40750.0,40749.0,0.75496363]
[1645158213165,1.52431995,40750.0,40749.0,0.45496363]
[1645158213365,1.52408633,40750.0,40749.0,0.45496363]
[1645158213966,1.52408633,40750.0,40749.0,1.30216363]
[1645158214219,1.52408633,40750.0,40749.0,1.40416363]
[1645158215015,1.52408633,40750.0,40749.0,1.10416363]
[1645158215616,1.52408633,40750.0,40749.0,1.10216363]
[1645158215817,1.52408633,40750.0,40749.0,1.40216363]
[1645158216217,1.52408633,40750.0,40749.0,1.45316363]
[1645158216620,0.8267212,40750.0,40749.0,1.45316363]
[1645158217023,0.0011,40759.0,40752.0,0.393589]
[1645158217223,0.0011,40759.0,40758.0,0.00146594]
[1645158217419,0.0011,40759.0,40758.0,0.38271594]
[1645158217618,0.421,40773.0,40758.0,0.38271594]
[1645158217868,0.75321004,40773.0,40759.0,0.28925921]
[1645158218064,0.75321004,40773.0,40761.0,0.33371594]
[1645158218265,0.33321004,40773.0,40761.0,0.48271594]
[1645158218464,0.33321004,40773.0,40761.0,0.05046594]
[1645158218465,0.296787,40766.0,40761.0,0.05046594]
[1645158218666,0.3,40765.0,40761.0,0.00146594]
[1645158218865,0.010818,40773.0,40761.0,0.33371594]
[1645158219065,0.010818,40773.0,40761.0,0.38271594]